Cogmind - Beta 13 @@@ ROGUE MODE // 2024.06.10 @ 10:18:54 Player: Minty Result: Destroyed by D-53 Grenadier with Mini Grenade Launcher Performance ------------- Evolutions (0) 0 Regions Visited (2) 400 Robots Destroyed (22) 110 Value Destroyed (345) 345 Prototype IDs (0) 0 Alien Tech Used (0) 0 Bonus (0) 0 TOTAL SCORE: 855 Bonus ------- None Cogmind --------- Core Integrity 0/250 Matter 259/300 Energy 68/100 System Corruption 2% Temperature Cool (16) Movement Walking (120) Location -10/Mines Parts ------- > --- POWER (1) -------- (None) > --- PROPULSION (2) --- Aluminum Leg > --- UTILITY (2) ------ Small Storage Unit > --- WEAPON (2) ------- EM Pulse Gun > --- INVENTORY (8) ---- Light Treads Light Treads EM Pulse Gun Beam Rifle Beam Rifle Mining Laser Peak State ------------ > --- POWER ------------ Light Nuclear Core > --- PROPULSION ------- Aluminum Leg Aluminum Leg > --- UTILITY ---------- Small Storage Unit Terrain Scan Processor > --- WEAPON ----------- Heavy Assault Rifle Heavy Assault Rifle > --- INVENTORY -------- Light Treads Light Treads EM Pulse Gun EM Pulse Gun Beam Rifle Beam Rifle Beam Rifle Mining Laser [Rating: 13] Favorites ----------- Power Light Ion Engine Engine Light Ion Engine Power Core Light Nuclear Core Propulsion Aluminum Leg Leg Aluminum Leg Utility Small Storage Unit Device Structural Scanner Storage Small Storage Unit Processor Terrain Scan Processor Weapon Heavy Assault Rifle Energy Gun Small Laser Ballistic Gun Heavy Assault Rifle Build | -11 -10 -10 ------- Run | Yrd Mat Min Slots Evolved . | . . . Power . | . . . Propulsion . | . . . Utility . | . . . Weapon . | . . . Parts Attached 8 | . 6 2 Power 1 | . 1 . Engine . | . . . Core 1 | . 1 . Reactor . | . . . Propulsion . | . . . Treads . | . . . Leg . | . . . Wheel . | . . . Hover . | . . . Flight . | . . . Utility 2 | . 2 . Device 1 | . 1 . Storage . | . . . Processor 1 | . 1 . Hackware . | . . . Protection . | . . . Artifact . | . . . Weapon 5 | . 3 2 Energy Gun 2 | . . 2 Energy Cannon . | . . . Ballistic Gun 3 | . 3 . Ballistic Cannon . | . . . Launcher . | . . . Special Weapon . | . . . Impact Weapon . | . . . Slashing Weapon . | . . . Piercing Weapon . | . . . Special Melee Weapon . | . . . Unidentified Prototypes . | . . . Parts Lost 6 | . 1 5 Power 2 | . 1 1 Propulsion 1 | . . 1 Utility . | . . . Weapon 3 | . . 3 Highest Loss Streak 5 | . 1 5 To Critical Strikes . | . . . Average Slot Usage (%) 90 | . 91 89 Engine 8 | . 12 . Core 4 | . . 13 Leg 27 | . 28 27 Storage 14 | . 14 14 Processor 6 | . 6 5 Energy Gun 3 | . 4 . Ballistic Gun 24 | . 23 26 Naked Turns . | . . . Heaviest Build 16 | 10 16 16 Greatest Support 20 | 20 20 20 Greatest Overweight (x) . | . . . Average Overweight (x) . | . . . Largest Inventory Capacity 8 | . 8 8 Average Capacity 8 | . 8 8 Most Carried 8 | . 8 8 Average Carried 7 | . 7 7 Final Capacity 8 | 8 8 8 Final Carried 8 | 6 8 6 Class Distribution -------------------- 100% | Mutant Dominant Class ---------------- Mutant | -10/Materials Mutant | -10/Mines Resources | -11 -10 -10 ----------- Run | Yrd Mat Min Matter Collected 549 | 200 323 26 Remotely . | . . . Salvage Created 647 | . 647 . Parts 42 | . 42 . Haulers Intercepted 2 | . 2 . Recyclers Shooed 2 | . 2 . Parts Field Recycled . | . . . Retrieved Matter . | . . . Parts Self-Destructed . | . . . Prevented . | . . . Kills | -11 -10 -10 ------- Run | Yrd Mat Min Combat Hostiles Destroyed 12 | . 12 . Guns 12 | . 12 . Classes Destroyed 8 | . 8 . Worker 1 | . 1 . Builder 1 | . 1 . Tunneler 2 | . 2 . Hauler 2 | . 2 . Recycler 2 | . 2 . Watcher 2 | . 2 . Swarmer 6 | . 6 . Grunt 6 | . 6 . Best Kill Streak 4 | . 4 . Combat Bots Only 4 | . 4 . Max Kills in Single Turn 1 | . 1 . Gunslinging . | . . . Exploded . | . . . Melee . | . . . Uniques/NPCs Destroyed . | . . . Combat | -11 -10 -10 -------- Run | Yrd Mat Min Hostile Shots Fired 67 | . 55 12 Missed 20 | . 20 . Damage Taken 844 | . 348 496 Core 253 | . 110 143 Absorbed by Shields . | . . . Core Remaining (%) 100 | 100 . . Volleys Fired 80 | . 73 7 Largest 2 | . 2 2 Hottest 79 | . 60 79 Shots Fired 156 | . 145 11 Gun 156 | . 145 11 Cannon . | . . . Launcher . | . . . Special . | . . . Kinetic 128 | . 122 6 Thermal 27 | . 23 4 Explosive . | . . . Electromagnetic 1 | . . 1 Robot Hit Streak 11 | . 11 5 Robot Miss Streak 5 | . 5 2 Penetration Max . | . . . Secondary Targets 2 | . 2 . Max Gunslinging Chain 1 | . 1 . Shots Hit Robots 89 | . 82 7 Core Hits 35 | . 33 2 Critical Kills . | . . . Critical Parts Destroyed . | . . . Critical Strikes . | . . . Melee Attacks . | . . . Impact . | . . . Slashing . | . . . Piercing . | . . . Sneak Attacks . | . . . Combat Hostiles . | . . . Follow-up Attacks . | . . . Damage Inflicted 1138 | . 1049 89 Guns 1120 | . 1037 83 Cannons . | . . . Explosions . | . . . Melee . | . . . Ramming 18 | . 12 6 Kinetic 929 | . 891 38 Thermal 191 | . 146 45 Explosive . | . . . Electromagnetic . | . . . Impact . | . . . Slashing . | . . . Piercing . | . . . Highest Corruption 2 | . 2 2 Average Corruption 2 | . 2 2 Corruption Purged . | . . . Corruption Blocked . | . . . Effects 11 | . 8 3 Message Errors 2 | . 1 1 Matter Fused 3 | . 2 1 Energy Discharges 2 | . 2 . Parts Rejected 1 | . 1 . Data Loss (minor) 2 | . 1 1 Alerts 1 | . 1 . Overload Shots . | . . . Overflow Damage . | . . . Projectiles . | . . . Explosions . | . . . Melee . | . . . Knockbacks . | . . . Impact . | . . . Kinetic . | . . . Secondary . | . . . Self-Inflicted Damage . | . . . Shots . | . . . Rammed . | . . . Targets Rammed 7 | . 4 3 Kicked 7 | . 4 3 Crushed . | . . . Highest Temperature 60 | . 60 46 Average Temperature 22 | . 20 29 Received Heat Transfer 105 | . 105 . Siege Activations . | . . . Robots Corrupted . | . . . Combat Hostiles . | . . . Parts Fried . | . . . Impact Corruptions . | . . . Robots Melted . | . . . Combat Hostiles . | . . . Parts Melted 2 | . 2 . Heat Transferred 436 | . 325 111 Parts Sabotaged . | . . . Parts Stolen . | . . . Parts Stripped . | . . . Power Chain Reactions . | . . . Alert | -11 -10 -10 ------- Run | Yrd Mat Min Peak Influence 215 | . 215 78 Initial 78 | . . 78 Average 107 | . 121 76 Maximum Alert Level 1 | . 1 . Low Security (%) 88 | . 82 100 Level 1 11 | . 17 . Level 2 . | . . . Level 3 . | . . . Level 4 . | . . . Level 5 . | . . . High Security . | . . . Max Security . | . . . Squads Dispatched 2 | . 2 . Investigation 2 | . 2 . Extermination . | . . . Reinforcement . | . . . Assault . | . . . Garrison . | . . . Intercept . | . . . Searches Triggered . | . . . Construction Impeded . | . . . Haulers Reinforced . | . . . Active Scanning Responses . | . . . Cargo Convoy Interrupts . | . . . Stealth | -11 -10 -10 --------- Run | Yrd Mat Min Distress Signals . | . . . Communications Jammed . | . . . Distress Signals . | . . . Times Spotted 22 | . 20 2 Peak Tracking Total 5 | . 5 2 Tactical Retreats . | . . . Traps | -11 -10 -10 ------- Run | Yrd Mat Min Traps Triggered 1 | . 1 . Indirectly . | . . . Trap Hack Attempts . | . . . Triggered . | . . . Disarmed . | . . . Reprogrammed . | . . . Reused . | . . . Traps Extracted . | . . . Installed . | . . . Triggered . | . . . Machines | -11 -10 -10 ---------- Run | Yrd Mat Min Machines Disabled . | . . . Max in Single Turn . | . . . Machines Repaired . | . . . Machines Dismantled . | . . . Machines Sabotaged . | . . . Overloaded Fab Kills . | . . . Hacking | -11 -10 -10 --------- Run | Yrd Mat Min Machines Accessed 4 | . 4 . Terminals 3 | . 3 . Fabricators . | . . . Repair Stations . | . . . Recycling Units 1 | . 1 . Scanalyzers . | . . . Garrison Access . | . . . Total Hacks 13 | . 13 . Successful 3 | . 3 . Failed 10 | . 10 . Catastrophic . | . . . Database Lockouts . | . . . Manual 5 | . 5 . Terminals 10 | . 10 . Fabricators . | . . . Repair Stations . | . . . Recycling Units 3 | . 3 . Scanalyzers . | . . . Garrison Access . | . . . Terminal Hacks 2 | . 2 . Terminal Index 1 | . 1 . Locate Traps 1 | . 1 . Fabricator Hacks . | . . . Repair Station Hacks . | . . . Recycling Unit Hacks 1 | . 1 . Retrieve Components 1 | . 1 . Scanalyzer . | . . . Garrison Access Hacks . | . . . Unauthorized Hacks . | . . . Terminals . | . . . Fabricators . | . . . Repair Stations . | . . . Recycling Units . | . . . Scanalyzers . | . . . Garrison Access . | . . . Data Cores Recovered . | . . . Used . | . . . Hacking Detections 4 | . 4 . Full Trace Events 3 | . 3 . Feedback Events . | . . . Feedback Blocked . | . . . Robot Schematics Acquired . | . . . Robots Built . | . . . Authchips . | . . . Time . | . . . Total Robot Build Rating . | . . . Part Schematics Acquired . | . . . Parts Built . | . . . Authchips . | . . . Time . | . . . Total Part Build Rating . | . . . Parts Repaired . | . . . Time . | . . . Parts Recycled . | . . . Recycled Matter . | . . . Retrieved Matter . | . . . Retrieved Components 1 | . 1 . Parts Scanalyzed . | . . . Part Schematics Acquired . | . . . Parts Damaged . | . . . Bothacking | -11 -10 -10 ------------ Run | Yrd Mat Min Used RIF Installer . | . . . Robots Hacked . | . . . Non-combat . | . . . Combat . | . . . Robot Hacks Applied . | . . . Relay Couplers Released . | . . . Fabnet Peak Effective % . | . . . Robots Rewired . | . . . Allies Hacked . | . . . Hacks Repelled . | . . . Allies | -11 -10 -10 -------- Run | Yrd Mat Min Total Allies . | . . . Largest Group . | . . . Highest-Rated Group . | . . . Highest-Rated Ally . | . . . Total Orders . | . . . Ally Attacks . | . . . Total Damage . | . . . Kills . | . . . Allies Corrupted . | . . . Allies Melted . | . . . Intel | -11 -10 -10 ------- Run | Yrd Mat Min Robot Analysis Total . | . . . Derelict Logs Recovered . | . . . Drone Launches . | . . . Drone Recoveries . | . . . Exploration | -11 -10 -10 ------------- Run | Yrd Mat Min Turns Passed 855 | . 596 259 Spaces Moved 487 | 1 298 188 Core . | . . . Treads . | . . . Legs 487 | 1 298 188 Wheels . | . . . Hover . | . . . Flight . | . . . Fastest Speed 120 | 120 120 120 Average Speed 120 | 120 120 120 Slowest Speed 120 | 120 120 120 Overloaded Moves . | . . . Propulsion Burnouts . | . . . Robots Hopped . | . . . Cave-ins Triggered . | . . . Exploration Rate (%) 37 | 1 62 49 Regions Visited 2 Branch Regions 1 Pre-discovered Areas . | . . . Known Exits Taken . | . . . Unknown Exits Taken 2 | 1 1 . Scrap Searched 1 | . . 1 Spaces Dug . | . . . Terrain Destroyed . | . . . Melee . | . . . Projectile . | . . . AOE . | . . . Terrain Rammed . | . . . Walls Destroyed . | . . . Machines Disabled . | . . . Actions | -11 -10 -10 --------- Run | Yrd Mat Min Total 608 | . 397 211 Wait 10 | . . 10 Move 485 | . 297 188 Hop . | . . . Pick Up 8 | . 8 . Fast Attach 5 | . 5 . Attach 2 | . . 2 Detach 1 | . . 1 Swap 1 | . 1 . Drop 9 | . 9 . Fire 80 | . 73 7 Melee . | . . . Ram . | . . . Kick 7 | . 4 3 Crush . | . . . Escape Stasis . | . . . Rewire . | . . . Trap . | . . . Miscellaneous . | . . . Route ------- -11/Scrapyard -10/Materials (discovered 2 exits: [*Mat] / [*Min]) -10/Mines (discovered 1 exit: [*Mat]) History --------- Turn | Location | Event 1 | -11/Scrapyard | Discovered new exit (range 0) 1 | -11/Scrapyard | Entered Materials 327 | -10/Materials | Build established: Mutant 433 | -10/Materials | Discovered new exit (range 4) 516 | -10/Materials | Discovered new exit (range 9) 597 | -10/Materials | Entered Mines 705 | -10/Mines | Discovered new exit (range 8) 822 | -10/Mines | Assembled infested the area 847 | -10/Mines | Core integrity fell below 50% 855 | -10/Mines | Core integrity fell below 20% 856 | -10/Mines | Destroyed by D-53 Grenadier with Mini Grenade Launcher Last Messages --------------- squad. 00840_ C-30 ARC bursts open, deploying its payload. 00840_ D-53 Grenadier unfolds itself. 00842_ Hvy. Assault Rifle destroyed. 00844_ A derelict emerges from the shadows: "What are you doing alone down here?" 00845_ Aluminum Leg destroyed. 00846_ ZN-799(g): "Well, at least you look like you can take care of yourself!" 00846_ D-53 Grenadier destroyed. 00847_ The unstable cave ceiling collapses. 00848_ ZN-799(g): "I have the funny feeling that things are about to get a lot worse around here, see you around!" 00848_ ZN-799(g) slips back into the shadows. 00848_ The unstable cave ceiling collapses. 00848_ Hvy. Assault Rifle destroyed. 00848_ Lgt. Nuclear Core destroyed. 00849_ The unstable cave ceiling collapses. 00852_ Beam Rifle destroyed. 00856_ The unstable cave ceiling collapses. Map ----- +----------------------------------------------------+ | ????????????????????????????????????????????????# | | ????????????????????????????????????????????????# | | ????????????????????????????????????????????????# | | ??????????????????????????????????????????####### | | ??????????????????????????????????????????# | | ??????????????????????????????????????????# ##### | | ???????????????????????????????????????????????# | | ???????????????????????????????????????????????# | | ???????????????????????????????????????????????# | | ???????????????????????????????????????????????## | | ????????????????????????????????????????????????## | | ?????????????????????????????????????????????????# | | ????????????????????????????????????????????????## | | ????????????????????#?????????????????????? ??## | | ???????????????????? ??????????????????? ? ??# | | ????????????????????# ???????????????? ??# | | ????????????????????# ???????????????? #?## | | ????????????????????# #####????????????# #??# | | ???????????????????## ##???????????? ##?# | | ??????????????????## #????????????? #?## | | ????????????????### ##?????????????# #??# | | ???????????????## ##?????????????# #### | | ???????????????# # ##?####??????## ## | | ???????????????# ### ##????## | | ???????????????# ## ##??## | | ????????????????????# @ #### | | ????????????????????# d ## | | ????????????????????# | | ????????????????????## | | ?????????????????????## ##### | | ?????????????????????# ##???## | | ????????????????# ### ##?????? | | ??????????? $ ########?##### ##??????? | | ?????????? ?????????????????## #???????? | | ????????????????????????????????## ## ##???????? | | ?????????????????????????????????########????????? | | ?????????????????????????????????????????????????? | | | | | | | | | | | | | | | | | | | | | | | | | | | +----------------------------------------------------+ Best States ------------- Heat Dissipation 25 Energy Generation 14 Energy Capacity 160 Matter Stores 300 Matter Capacity 300 Sight Range 16 Terrain Scan Density 85 Evasion (%) 55 Item Schematics ----------------- None Robot Schematics ------------------ None Fabricated ------------ Nothing Alien Tech Used ----------------- None Achievements -------------- None Challenges ------------ None Game ------ Seed AntigravPhasingArmor Manual? 0 Play Time 00:04:53 Cumulative 757.7 hours Start 2024.06.10 @ 10:14:50 End 2024.06.10 @ 10:18:54 Sessions 1 Manual Loads 0 Difficulty Rogue Special Mode None Game No. 847 Rogue 571 Adventurer 123 Explorer 153 Win Type - Total 28 Types 22/0/4/1/0/0/0/1/0 Lore% 84 Gallery% 92 Achievement% 76 Wizard Run 0 Options --------- Layout 0 ASCII 0 Keyboard 1 Movement Numpad Keybinds 0 Fullscreen 2 Font 18/Terminus Map View 76x50 Zoom Use 0% Tactical HUD 1 Map Filters NONE Filters SHIFT_HUE(360) Steam 1 RUN: 1dc5e0c1-7033-4983-9f02-b322bf32e3c7